Cogmind - Beta 16 @@@ ROGUE MODE // 2026.01.23 @ 23:22:05 Player: Bt-7274 Result: Destroyed by H-61 Shepherd with Heavy Assault Cannon Performance ------------- Evolutions (2) 1000 Regions Visited (3) 600 Robots Destroyed (48) 240 Value Destroyed (1467) 1467 Prototype IDs (2) 40 Alien Tech Used (0) 0 Bonus (0) 0 TOTAL SCORE: 3347 Bonus ------- None Cogmind --------- Core Integrity 0/550 Matter 235/300 Energy 95/100 System Corruption 0% Temperature Cool (28) Movement Flying (40) Location -8/Materials Parts ------- > --- POWER (1) -------- (None) > --- PROPULSION (2) --- Flight Unit > --- UTILITY (6) ------ Transport Network Coupler Targeting Computer Melee Analysis Suite ECM Suite Hacking Suite > --- WEAPON (2) ------- (None) > --- INVENTORY (5) ---- Light Nuclear Core Heavy Assault Rifle Axe Peak State ------------ > --- POWER ------------ Light Nuclear Core > --- PROPULSION ------- Aluminum Leg Carbon-fiber Leg > --- UTILITY ---------- Improved Heat Sink Small Storage Unit Small Storage Unit Transport Network Coupler Targeting Computer Melee Analysis Suite > --- WEAPON ----------- Katana Katana > --- INVENTORY -------- Improved Ion Engine Light Nuclear Core Particle Gun Heavy Assault Rifle Assault Cannon [Rating: 24] Favorites ----------- Power Light Nuclear Core Engine Light Ion Engine Power Core Light Nuclear Core Propulsion Aluminum Leg Leg Aluminum Leg Hover Unit Hover Unit Flight Unit Flight Unit Utility Small Storage Unit Device Seismic Detector Storage Small Storage Unit Processor Transport Network Coupler Hackware Hacking Suite Weapon Medium Laser Energy Gun Medium Laser Ballistic Gun Assault Rifle Ballistic Cannon Assault Cannon Launcher Grenade Launcher Special Weapon Mining Laser Slashing Weapon Katana Special Melee Weapon Datajack Build | -11 -10 -9 -8 ------- Run | Yrd Mat Mat Mat Slots Evolved 4 | . . 2 2 Power . | . . . . Propulsion . | . . . . Utility 4 | . . 2 2 Weapon . | . . . . Parts Attached 47 | 7 4 6 30 Power 7 | 1 1 1 4 Engine 3 | 1 . 1 1 Core 4 | . 1 . 3 Reactor . | . . . . Propulsion 13 | 2 1 . 10 Treads . | . . . . Leg 9 | 2 1 . 6 Wheel . | . . . . Hover 1 | . . . 1 Flight 3 | . . . 3 Utility 14 | 2 . 3 9 Device 4 | 1 . 1 2 Storage 4 | 1 . . 3 Processor 5 | . . 2 3 Hackware 1 | . . . 1 Protection . | . . . . Artifact . | . . . . Weapon 13 | 2 2 2 7 Energy Gun 2 | 2 . . . Energy Cannon . | . . . . Ballistic Gun 4 | . 1 1 2 Ballistic Cannon 1 | . . . 1 Launcher 1 | . . 1 . Special Weapon 1 | . 1 . . Impact Weapon . | . . . . Slashing Weapon 3 | . . . 3 Piercing Weapon . | . . . . Special Melee Weapon 1 | . . . 1 Unidentified Prototypes . | . . . . Parts Lost 20 | . . 7 13 Power 4 | . . 2 2 Propulsion 9 | . . 2 7 Utility 2 | . . 1 1 Weapon 5 | . . 2 3 Highest Loss Streak 6 | . . 6 6 To Critical Strikes . | . . . . Average Backups 5 | 2 6 5 4 Power 1 | . 1 . 1 Propulsion . | . . 1 . Utility . | . 1 1 . Weapon 2 | . 2 2 2 Tool/Special . | . . . . Unused Backups 5 | . 1 . 4 Power 2 | . . . 2 Propulsion . | . . . . Utility 1 | . 1 . . Weapon 2 | . . . 2 Tool/Special . | . . . . Average Slot Usage (%) 82 | . 100 86 64 Engine 3 | . 5 4 1 Core 6 | . 8 5 5 Leg 18 | . 28 18 8 Device 9 | . 14 10 4 Storage 7 | . 14 9 1 Processor 12 | . . 19 23 Hackware 1 | . . . 2 Energy Gun 10 | . 18 15 . Ballistic Gun 5 | . 8 2 4 Ballistic Cannon 1 | . . . 3 Slashing Weapon 2 | . . . 5 Peak Build Rating 24 | 7 9 11 24 Average Rating 11 | 4 8 9 16 On Entrance 4 | . 7 9 . Avg Prop Armor Cover (%) . | . . . . Naked Turns 17 | . . 17 . Heaviest Build 20 | 13 15 15 20 Greatest Support 25 | 20 20 20 25 Greatest Overweight (x) 2 | 1 . 1 2 Average Overweight (x) . | . . . . Largest Inventory Capacity 10 | 8 8 8 10 Average Capacity 6 | 5 8 7 5 Most Carried 8 | 3 8 7 6 Average Carried 5 | 2 6 5 4 Final Capacity 8 | 8 8 5 5 Final Carried 8 | 2 8 5 3 Class Distribution -------------------- 55% | Mutant 29% | Scavenger-Mutant 9% | Skirmisher 5% | Scavenger-Gladiator Dominant Class ---------------- Mutant | -10/Materials Skirmisher | -9/Materials Scavenger-Mutant | -8/Materials Resources | -11 -10 -9 -8 ----------- Run | Yrd Mat Mat Mat Matter Collected 1092 | 251 157 . 684 Remotely . | . . . . Salvage Created 1761 | 33 609 174 945 Parts 107 | 8 42 9 48 Haulers Intercepted 2 | . 2 . . Recyclers Shooed 4 | . 4 . . Parts Field Recycled . | . . . . Retrieved Matter . | . . . . Parts Self-Destructed . | . . . . Prevented . | . . . . Parts Restored . | . . . . Kills | -11 -10 -9 -8 ------- Run | Yrd Mat Mat Mat Combat Hostiles Destroyed 37 | . 10 4 23 Melee 7 | . . . 7 Guns 19 | . 9 1 9 Cannons 7 | . . . 7 AOE 4 | . 1 3 . Classes Destroyed 11 | 1 4 3 3 Worker 1 | . . . 1 Tunneler 2 | 2 . . . Hauler 2 | . 2 . . Recycler 2 | . 1 . 1 Operator 3 | . . 1 2 Watcher 1 | . 1 . . Swarmer 7 | . . . 7 Grunt 24 | . 10 2 12 Brawler 1 | . . 1 . Sentry 3 | . . 1 2 Hunter 2 | . . . 2 Best Kill Streak 7 | 2 7 3 5 Combat Bots Only 6 | . 6 3 5 Max Kills in Single Turn 3 | 1 1 3 2 Gunslinging . | . . . . Exploded 3 | . 1 3 . Melee 1 | . . . 1 Uniques/NPCs Destroyed . | . . . . Combat | -11 -10 -9 -8 -------- Run | Yrd Mat Mat Mat Hostile Shots Fired 294 | . 50 76 168 Missed 92 | . 16 23 53 Hits 202 | . 34 53 115 Projectile 202 | . 34 53 115 Critical Strikes 5 | . . 1 4 Damage Taken 2737 | . 426 676 1635 Core 972 | . 124 262 586 Absorbed by Shields . | . . . . Core Remaining (%) 61 | 100 50 34 . Volleys Fired 96 | 2 43 11 40 Largest 2 | 2 2 2 2 Hottest 150 | 90 150 90 73 Shots Fired 184 | 4 86 22 72 Gun 148 | 4 83 20 41 Cannon 31 | . . . 31 Launcher 2 | . . 2 . Special 3 | . 3 . . Kinetic 109 | . 30 8 71 Thermal 50 | 2 46 1 1 Explosive 2 | . . 2 . Electromagnetic 23 | 2 10 11 . Robot Hit Streak 12 | 3 10 12 8 Robot Miss Streak 3 | . 3 3 2 Penetration Max 1 | . . . 1 Secondary Targets 1 | . 1 . . Max Gunslinging Chain 1 | . 1 . . Shots Hit Robots 152 | 3 54 16 79 Core Hits 79 | 2 30 10 37 Critical Kills 1 | . 1 . . Critical Parts Destroyed . | . . . . Critical Strikes 6 | . 2 . 4 Burn 1 | . 1 . . Destroy 1 | . 1 . . Blast 1 | . . . 1 Sever 3 | . . . 3 Melee Attacks 33 | . . . 33 Impact . | . . . . Slashing 33 | . . . 33 Piercing . | . . . . Sneak Attacks 5 | . . . 5 Combat Hostiles 1 | . . . 1 Follow-up Attacks 1 | . . . 1 Damage Inflicted 3451 | 37 798 485 2131 Guns 1516 | 37 700 210 569 Cannons 485 | . . . 485 Explosions 348 | . 92 256 . Melee 1071 | . . . 1071 Ramming 31 | . 6 19 6 Kinetic 1379 | . 242 83 1054 Thermal 515 | 13 441 61 . Explosive 207 | . . 207 . Electromagnetic 248 | 24 109 115 . Impact . | . . . . Slashing 1071 | . . . 1071 Piercing . | . . . . Highest Corruption 2 | . 1 2 . Average Corruption 1 | . 1 2 . Corruption Purged . | . . . . Corruption Blocked . | . . . . Effects 1 | . 1 . . Message Errors 1 | . 1 . . Overload Shots . | . . . . Overflow Damage 128 | . 2 . 126 Projectiles 8 | . . . 8 Explosions 2 | . 2 . . Melee 118 | . . . 118 Knockbacks 10 | . . . 10 Impact . | . . . . Kinetic 8 | . . . 8 Secondary 2 | . . . 2 Self-Inflicted Damage 43 | . 40 3 . Shots 1 | . 1 . . Rammed 2 | . . 2 . Targets Rammed 7 | . 2 4 1 Kicked 5 | . 2 2 1 Crushed . | . . . . Highest Temperature 216 | 30 216 36 10 Average Temperature 58 | 18 69 13 5 Received Heat Transfer 1041 | . 216 258 567 Siege Activations . | . . . . Martial Activations . | . . . . Shielding Activations . | . . . . Robots Disrupted . | . . . . Combat Hostiles . | . . . . Robots Corrupted . | . . . . Combat Hostiles . | . . . . Parts Fried . | . . . . Impact Corruptions . | . . . . Robots Melted . | . . . . Combat Hostiles . | . . . . Parts Melted 2 | . 2 . . Heat Transferred 1384 | 37 1260 87 . Parts Sabotaged . | . . . . Parts Stolen . | . . . . Parts Stripped . | . . . . Power Chain Reactions 2 | . 1 1 . Alert | -11 -10 -9 -8 ------- Run | Yrd Mat Mat Mat Maximum Alert Level 1 | . . 1 1 Low Security (%) 88 | 100 100 97 72 Level 1 11 | . . 2 27 Level 2 . | . . . . Level 3 . | . . . . Level 4 . | . . . . Level 5 . | . . . . High Security . | . . . . Max Security . | . . . . Peak Influence 307 | 5 172 201 307 Initial 57 | . . 55 57 Average 101 | . 83 50 153 Influence Increases 1277 | 10 391 236 640 Destroy 0b10 Robot/C 740 | . 200 80 460 Destroy 0b10 Robot/NC 55 | 10 20 5 20 Destroy Leader 176 | . 36 30 110 Successful Hack 6 | . 6 . . Disable Machine 15 | . . 15 . Destroy Structure 30 | . 9 16 5 Lose Combat Pursuer 255 | . 120 90 45 Influence Decreases 1178 | 10 259 232 677 Entered New Map 156 | . . 77 79 Time Decay 677 | 10 259 90 318 Lost Part 195 | . . 65 130 Purge Threat 150 | . . . 150 Squads Dispatched 12 | . 2 2 8 Investigation 4 | . 2 . 2 Extermination . | . . . . Reinforcement 5 | . . 2 3 Assault . | . . . . Garrison 3 | . . . 3 Intercept . | . . . . Searches Triggered . | . . . . Construction Impeded 1 | . . . 1 Haulers Reinforced . | . . . . Active Scanning Responses . | . . . . Cargo Convoy Interrupts . | . . . . Stealth | -11 -10 -9 -8 --------- Run | Yrd Mat Mat Mat Distress Signals 7 | . 3 4 . Communications Jammed . | . . . . Distress Signals . | . . . . Times Spotted 77 | . 19 24 34 Peak Tracking Total 12 | . 6 12 6 Tactical Retreats 7 | . 3 2 2 ECM-based Alert Blocks 2 | . . . 2 Traps | -11 -10 -9 -8 ------- Run | Yrd Mat Mat Mat Traps Triggered 5 | . 3 1 1 Indirectly . | . . . . Trap Hack Attempts . | . . . . Triggered . | . . . . Disarmed . | . . . . Reprogrammed . | . . . . Reused . | . . . . Traps Extracted . | . . . . Installed . | . . . . Triggered . | . . . . Machines | -11 -10 -9 -8 ---------- Run | Yrd Mat Mat Mat Machines Disabled 1 | . . 1 . Max in Single Turn 1 | . . 1 . Machines Repaired . | . . . . Machines Dismantled . | . . . . Machines Sabotaged . | . . . . Overloaded Fab Kills . | . . . . Hacking | -11 -10 -9 -8 --------- Run | Yrd Mat Mat Mat Machines Accessed 5 | . 4 . 1 Terminals 5 | . 4 . 1 Fabricators . | . . . . Repair Stations . | . . . . Recycling Units . | . . . . Scanalyzers . | . . . . Garrison Access . | . . . . Total Hacks 14 | . 10 . 4 Successful 4 | . 3 . 1 Failed 10 | . 7 . 3 Catastrophic 6 | . 5 . 1 Database Lockouts . | . . . . Manual 8 | . 8 . . Terminals 14 | . 10 . 4 Fabricators . | . . . . Repair Stations . | . . . . Recycling Units . | . . . . Scanalyzers . | . . . . Garrison Access . | . . . . Terminal Hacks 4 | . 3 . 1 Robot Analysis 1 | . 1 . . Prototype ID Bank 2 | . 2 . . Unreport Threat 1 | . . . 1 Fabricator Hacks . | . . . . Repair Station Hacks . | . . . . Recycling Unit Hacks . | . . . . Scanalyzer . | . . . . Garrison Access Hacks . | . . . . Unauthorized Hacks . | . . . . Terminals . | . . . . Fabricators . | . . . . Repair Stations . | . . . . Recycling Units . | . . . . Scanalyzers . | . . . . Garrison Access . | . . . . Data Cores Recovered 1 | . . . 1 Used 1 | . . . 1 Hacking Detections 5 | . 4 . 1 Full Trace Events 2 | . 1 . 1 Feedback Events . | . . . . Feedback Blocked . | . . . . Robot Schematics Acquired . | . . . . Robots Built . | . . . . Authchips . | . . . . Time . | . . . . Total Robot Build Rating . | . . . . Part Schematics Acquired . | . . . . Parts Built . | . . . . Authchips . | . . . . Time . | . . . . Total Part Build Rating . | . . . . Part Studies Acquired . | . . . . Parts Repaired . | . . . . Time . | . . . . Parts Recycled . | . . . . Recycled Matter . | . . . . Retrieved Matter . | . . . . Retrieved Components . | . . . . Parts Scanalyzed . | . . . . Part Schematics Acquired . | . . . . Parts Damaged . | . . . . Bothacking | -11 -10 -9 -8 ------------ Run | Yrd Mat Mat Mat Used RIF Installer . | . . . . Robots Hacked . | . . . . Non-combat . | . . . . Combat . | . . . . Robot Hacks Applied . | . . . . Relay Couplers Released . | . . . . Fabnet Peak Effective % . | . . . . Robots Rewired . | . . . . Allies Hacked . | . . . . Hacks Repelled . | . . . . Allies | -11 -10 -9 -8 -------- Run | Yrd Mat Mat Mat Total Allies . | . . . . Largest Group . | . . . . Highest-Rated Group . | . . . . Highest-Rated Ally . | . . . . Total Orders . | . . . . Ally Attacks . | . . . . Total Damage . | . . . . Kills . | . . . . Allies Corrupted . | . . . . Allies Melted . | . . . . Intel | -11 -10 -9 -8 ------- Run | Yrd Mat Mat Mat Active Infowar (turns) 1694 | 40 723 216 715 Sensors 208 | . . 208 . Seismic 765 | 40 723 2 . T.N.C. 928 | . . 213 715 ECM 29 | . . . 29 Robot Analysis Total 1 | . 1 . . Derelict Logs Recovered . | . . . . Drone Launches . | . . . . Drone Recoveries . | . . . . Exploration | -11 -10 -9 -8 ------------- Run | Yrd Mat Mat Mat Turns Passed 1788 | 115 723 233 717 Spaces Moved 1131 | 86 449 169 427 Core 80 | 19 . 48 13 Treads . | . . . . Legs 835 | 67 449 121 198 Wheels . | . . . . Hover 95 | . . . 95 Flight 121 | . . . 121 Fastest Speed 37 | 50 120 50 37 Average Speed 107 | 111 120 101 95 Slowest Speed 190 | 120 120 190 190 Overloaded Moves . | . . . . Propulsion Burnouts . | . . . . Robots Hopped 7 | . . . 7 Potential Cave-ins . | . . . . Cave-ins Triggered . | . . . . Exploration Rate (%) 27 | 5 61 22 22 Regions Visited 3 Branch Regions . Pre-discovered Areas . | . . . . Known Exits Taken . | . . . . Unknown Exits Taken 3 | 1 1 1 . Scrap Searched . | . . . . Spaces Dug 5 | . 3 . 2 Terrain Destroyed 24 | . 6 15 3 Melee 2 | . . . 2 Projectile 4 | . 3 . 1 AOE 18 | . 3 15 . Terrain Rammed . | . . . . Walls Destroyed . | . . . . Machines Disabled . | . . . . Actions | -11 -10 -9 -8 --------- Run | Yrd Mat Mat Mat Total 1453 | 98 542 207 606 Wait 90 | . 28 15 47 Move 1115 | 85 448 168 414 Hop 6 | . . . 6 Pick Up 23 | 4 10 1 8 Fast Attach 26 | 5 . . 21 Attach 15 | 2 . 4 9 Detach 3 | . . . 3 Swap 17 | . 5 2 10 Drop 23 | . 6 2 15 Fire 96 | 2 43 11 40 Melee 32 | . . . 32 Ram 2 | . . 2 . Kick 5 | . 2 2 1 Crush . | . . . . Escape Stasis . | . . . . Rewire . | . . . . Trap . | . . . . Miscellaneous . | . . . . Route ------- -11/Scrapyard -10/Materials (discovered 4 exits: *Mat x2 / [*Min x2]) -9/Materials -8/Materials History --------- Turn | Location | Event 11 | -11/Scrapyard | Discovered new exit (range 15) 116 | -11/Scrapyard | Entered Materials 174 | -10/Materials | Discovered new exit (range 15) 310 | -10/Materials | Build established: Mutant 527 | -10/Materials | Discovered new exit (range 13) 657 | -10/Materials | Discovered new exit (range 16) 783 | -10/Materials | Discovered new exit (range 16) 839 | -10/Materials | Entered another Materials area 839 | -9/Materials | Evolved 2 slots: Utility x2 1061 | -9/Materials | Core integrity fell below 50% 1064 | -9/Materials | Discovered new exit (range 16) 1072 | -9/Materials | Entered another Materials area 1072 | -8/Materials | Evolved 2 slots: Utility x2 1078 | -8/Materials | Lost 6 parts (1p2n1u2w) 1469 | -8/Materials | Garrison activated, responded to threat 1497 | -8/Materials | Core integrity fell below 50% 1542 | -8/Materials | Lost 6 parts (1p3n1u1w) 1656 | -8/Materials | Lost 4 parts (1p2n1w) 1774 | -8/Materials | Core integrity fell below 20% 1789 | -8/Materials | Destroyed by H-61 Shepherd with Heavy Assault Cannon Last Messages --------------- 01608_ Flight Unit destroyed. 01611_ G-47 Trooper destroyed. 01621_ Terminal disabled. 01625_ Flight Unit destroyed. 01629_ G-47 Trooper Aluminum Leg severed. 01634_ G-47 Trooper destroyed. 01638_ Acquired Aluminum Leg. 01646_ Acquired Hover Unit. 01647_ Dropped Aluminum Leg. 01651_ Acquired Lgt. Nuclear Core. 01675_ K-01 Serf collects debris. 01710_ U-05 Engineer builds a Wall. 01711_ K-01 Serf collects debris. 01774_ Hover Unit destroyed. 01777_ Dropped Katana. 01778_ Dropped Lgt. Nuclear Core. 01789_ Critical hit (Burn: +37). 01789_ H-61 Shepherd calls for reinforcements. 01789_ ALERT: Suspicious intruders detected, dispatching Specialist reinforcements to area. Map ----- +----------------------------------------------------+ | ??????????????????????????????????? | | ??????????????????????????????????? | | ??????????????????????????????????? | | ??????????????????????????????????? | | ??????????????????????????????????? | | ??????????????????????????????????? | | ??????????????????????????????????? | | ??????????????????????????????????? | | ??????????????????????????????????? | | ??????????????????????????????????? | | ????????? ?????????????????????? | | ????????? #???????????????????? | | ????????? #??????????????????? | | ????????? #??????????????????? | | ????????? / ?????????????????? | | ????????? H ??????????????????? | | ????????? ???????????????????? | | ????????? ???????????????????? | | ????????? ????????????????????? | | ?????????# #????????????######### | | ?????????# #????????????# | | ?????????# +????????????# " / | | ??######## #????????????# "G" | | ??# ! ## #????????????# " " """ | | ??# #????????????# """ | | ??# @ #????????????# """ | | ??# % #????????????# !=%== | | ??# Y ##+###????????????# % | | ??### ###????????#######??####+#### | | ????# #??????????# ##### !%! #? | | ????# #??????????# %* ## | | ????# #??????????# ## | | ????# #??????????# ## | | ????# ############ ##### #? | | ????# # | ### ##???#######? | | ????# # """ #?# #???????????? | | ????# # """"" #?# #???????????? | | ????# # """"" #?# #???????????? | | ????# # """"" #?# #???????????? | | ????# # """ #?#% #???????????? | | ????# # ] #?# #???????????? | | ????# # #?# ####????????? | | ????# #####+#######% % ##???????? | | ????# #?# % #???????? | | ????# #?# % % !#???????? | | ????# #?# % !#???????? | | ????# #?# % !#???????? | | ????# #?# ##???????? | | ????# ### ####????????? | | ????# /* #???????????? | +----------------------------------------------------+ Best States ------------- Heat Dissipation 45 Energy Generation 14 Energy Capacity 160 Matter Stores 300 Matter Capacity 300 Sight Range 16 Robot Scan Range 14 Terrain Scan Density 10 ECM Strength 1 Evasion (%) 62 Targeting Accuracy 5 Melee Accuracy 5 Offensive Hacking 10 Item Schematics ----------------- None Robot Schematics ------------------ None Fabricated ------------ Nothing Repaired ---------- Nothing Studied --------- None Alien Tech Used ----------------- None Achievements -------------- None Challenges ------------ None Game ------ Seed AnalysisArmageddonAnalyzer Manual? 0 Play Time 00:19:11 Cumulative 60.6 hours Start 2026.01.23 @ 23:03:48 End 2026.01.23 @ 23:22:05 Sessions 1 Manual Loads 0 Difficulty Rogue Special Mode None Game No. 75 Rogue 75 Adventurer 0 Explorer 0 Win Type - Total 1 Types 1/0/0/0/0/0/0/0/0/0 Lore% 35 Gallery% 46 Achievement% 30 Wizard Run 0 Options --------- Layout 1 ASCII 0 Keyboard 0 Movement Numpad Keybinds 0 Fullscreen 1 Font 32/SmallcapsGlow Map View 50x35 Zoom Use 0% Tactical HUD 1 Map Filters NONE Filters NONE Steam 1 RUN: 3e80daf7-0a42-4528-ad4b-0196b52f3271